bitfinex-derivatives/quotes_SOLF0:USTF0_20250923
["timestamp","ask_amount","ask_price","bid_price","bid_amount"]
[1758657432069,119.18,214.76,214.7,1.68727975]
[1758657432354,1.1648256,214.75,214.7,1.68727975]
[1758657432556,4.1888,214.76,214.7,1.68727975]
[1758657432757,65.1715,214.72,214.62,7.36]
[1758657432961,97.27203829,214.71,214.6,1.68727975]
[1758657433151,4.1907,214.67,214.6,1.68727975]
[1758657434752,90.82,214.7,214.6,5.87897975]
[1758657434955,1.16498924,214.69,214.63,1.68727975]
[1758657435258,37.13466045,214.72,214.65,1.68727975]
[1758657435462,14.09226556,214.76,214.67,1.68727975]
[1758657435660,4.1876,214.82,214.75,1.68727975]
[1758657435967,65.153,214.78,214.69,1.68727975]
[1758657436173,1.16454186,214.77,214.69,1.68727975]
[1758657436466,1.16454186,214.76,214.69,1.68727975]
[1758657436658,4.1894,214.73,214.69,1.68727975]
[1758657436861,4.1894,214.73,214.66,1.68727975]
[1758657437266,65.153,214.78,214.63,7.36]
[1758657437267,4.1897,214.71,214.63,7.36]
[1758657437460,65.1661,214.74,214.53,65.2278]
[1758657437663,151.35334694,214.73,214.63,1.68727975]
[1758657437857,1.68727975,214.69,214.58,9.04727975]
[1758657438766,1.68727975,214.69,214.58,1.68727975]
[1758657438767,65.1893,214.67,214.58,1.68727975]
[1758657438958,65.1926,214.65,214.53,7.36]
[1758657439269,65.1926,214.65,214.55,1.68727975]
[1758657439864,4.1919,214.6,214.55,1.68727975]
[1758657440566,4.1923,214.58,214.53,7.36]
[1758657441562,4.1923,214.58,214.49,11.554]
[1758657442867,4.1919,214.61,214.49,11.554]
[1758657443072,65.2015,214.63,214.51,4.1936]
[1758657443467,65.2049,214.61,214.49,7.36]
[1758657444069,4.1927,214.56,214.49,7.36]
[1758657444768,4.1922,214.59,214.49,7.36]
[1758657445761,37.01584975,214.63,214.49,72.5999]
[1758657445965,65.1841,214.68,214.5,7.22]
[1758657445966,62.98,214.65,214.5,7.22]
[1758657446265,65.1956,214.64,214.5,7.22]
[1758657446665,119.16,214.63,214.5,11.4138]
[1758657446968,123.3512,214.64,214.5,11.4138]
[1758657447173,4.1919,214.6,214.5,11.4138]
[1758657447372,4.1919,214.6,214.5,7.22]
[1758657451679,4.1927,214.56,214.46,7.22]
[1758657454081,4.1927,214.56,214.46,11.4146]
[1758657454883,65.1989,214.63,214.49,7.22]
[1758657455087,119.16,214.63,214.49,7.22]
[1758657455284,65.1925,214.65,214.49,7.22]
[1758657455489,119.16,214.64,214.49,7.22]
[1758657456887,4.1917,214.62,214.52,4.1933]
[1758657457388,65.1925,214.65,214.52,4.1933]
[1758657457389,4.1919,214.6,214.52,4.1933]
[1758657457590,4.1919,214.6,214.49,11.4139]
[1758657457986,4.1919,214.6,214.51,4.1936]
[1758657460683,4.1923,214.58,214.49,7.22]
[1758657460882,4.1923,214.58,214.5,1.68723124]
[1758657461095,65.2086,214.6,214.5,1.68723124]
[1758657461295,4.1927,214.56,214.49,7.22]
[1758657461797,1.68723124,214.58,214.49,7.22]
[1758657462094,1.68723124,214.56,214.47,1.68723124]
[1758657462694,65.224,214.55,214.44,7.22]
[1758657462890,1.68723124,214.53,214.44,7.22]
[1758657463198,5.88063124,214.53,214.44,7.22]
[1758657463796,1.68723124,214.53,214.46,4.1946]
[1758657464097,38.19118568,214.56,214.47,7.22]
[1758657464295,119.16,214.57,214.47,7.22]
[1758657464887,4.1928,214.56,214.47,11.4142]
[1758657465088,4.1928,214.56,214.47,7.22]
[1758657465292,1.68723124,214.58,214.5,7.22]
[1758657465492,5.87963124,214.58,214.5,11.4138]
[1758657465893,4.1924,214.58,214.5,11.4138]
[1758657467095,40.92680058,214.58,214.5,11.4138]
[1758657467598,4.1924,214.58,214.5,11.4138]
[1758657468797,4.1924,214.58,214.51,4.1935]
[1758657469202,4.1919,214.6,214.5,7.22]
[1758657469801,4.1919,214.6,214.51,4.1936]
[1758657470202,41.43701462,214.6,214.5,7.22]
[1758657470403,4.1915,214.62,214.5,7.22]
[1758657470698,356.39632844,214.67,214.5,7.22]
[1758657470905,4.1918,214.61,214.52,4.1934]
[1758657471096,65.1989,214.63,214.5,7.22]
[1758657472601,4.1919,214.61,214.51,4.1935]
[1758657472802,4.1919,214.61,214.5,7.22]
[1758657473306,4.1913,214.63,214.52,7.33]
[1758657474313,4.1909,214.65,214.57,4.1924]
[1758657474508,4.1909,214.65,214.56,7.33]
[1758657475304,394.49333996,214.67,214.58,4.1921]
[1758657475512,390.30283996,214.67,214.58,4.1921]
[1758657476815,4.1908,214.66,214.58,4.1921]
[1758657477314,390.30283996,214.67,214.56,7.33]
[1758657477715,4.1911,214.65,214.57,4.1923]
[1758657478013,4.1911,214.65,214.56,7.33]
[1758657478911,4.1911,214.65,214.58,4.1921]
[1758657479208,356.5306,214.67,214.56,7.33]
[1758657479408,174.64670181,214.7,214.57,65.2167]
[1758657479612,174.64670181,214.7,214.58,7.33]
[1758657480115,174.64670181,214.7,214.64,7.33]
[1758657480316,4.1898,214.71,214.64,7.33]
[1758657480511,14.24699343,214.78,214.62,72.529]
[1758657480712,1.16486809,214.77,214.64,65.1953]
[1758657480913,14.18564105,214.8,214.7,7.33]
[1758657481117,4.1873,214.84,214.73,4.1892]
[1758657481316,1.16442612,214.83,214.74,7.33]
[1758657481513,4.1873,214.84,214.74,7.33]
[1758657481915,13.67915587,214.84,214.75,4.1889]
[1758657482118,123.2667,214.87,214.75,4.1889]
[1758657482310,4.1874,214.83,214.74,7.33]
[1758657482908,65.1297,214.86,214.74,7.33]
[1758657483119,65.1441,214.81,214.7,7.33]
[1758657483614,4.1884,214.78,214.7,7.33]
[1758657483919,79.33789533,214.86,214.7,7.33]
[1758657484111,79.33789533,214.86,214.68,65.1828]
[1758657484112,4.1876,214.82,214.73,7.33]
[1758657484517,65.136,214.84,214.73,7.33]
[1758657484718,4.188,214.8,214.73,7.33]
[1758657484917,65.1443,214.81,214.67,7.33]
[1758657485521,4.188,214.81,214.67,7.33]
[1758657485821,14.20819533,214.86,214.71,7.59]
[1758657486024,90.28,214.87,214.71,7.59]
[1758657486315,65.1352,214.84,214.71,11.7797]
[1758657486618,65.138,214.83,214.71,11.7797]
[1758657486818,65.1413,214.82,214.71,7.59]
[1758657488021,65.15,214.79,214.63,65.1981]
[1758657488215,65.1413,214.82,214.65,65.1913]
[1758657488422,65.1348,214.84,214.72,7.59]
[1758657488617,13.89817731,214.86,214.72,7.59]
[1758657488921,4.1875,214.83,214.75,4.1889]
[1758657489123,4.1875,214.83,214.76,7.59]
[1758657489617,17.84725205,214.86,214.76,7.59]
[1758657489819,17.84725205,214.86,214.77,4.1885]
[1758657490019,13.66025205,214.86,214.76,7.59]
[1758657490221,4.1862,214.89,214.76,7.59]
[1758657491119,18.47055222,214.89,214.76,11.7786]
[1758657491321,18.47055222,214.89,214.77,7.59]
[1758657491719,14.28435222,214.89,214.77,7.59]
[1758657491920,65.1143,214.91,214.77,7.59]
[1758657492518,4.1868,214.86,214.77,7.59]
[1758657492928,65.1143,214.91,214.77,7.59]
[1758657493327,4.1866,214.87,214.78,4.1882]
[1758657494021,65.125,214.88,214.77,7.59]
[1758657494727,65.1319,214.85,214.72,11.7793]
[1758657494928,65.1348,214.84,214.72,7.59]
[1758657495431,65.1262,214.87,214.72,7.59]
[1758657495817,4.1876,214.82,214.74,4.1891]
[1758657498126,78.80338664,214.89,214.73,7.59]
[1758657498326,65.1227,214.88,214.73,7.59]
[1758657498729,65.1325,214.85,214.73,11.7792]
[1758657499831,4.1878,214.82,214.73,11.7792]
[1758657501125,4.188,214.8,214.73,7.59]
[1758657501324,65.141,214.82,214.68,7.59]
[1758657501524,65.1447,214.81,214.68,7.59]
[1758657501726,4.1888,214.76,214.68,7.59]
[1758657501921,65.1532,214.78,214.68,7.59]
[1758657502522,65.1594,214.76,214.64,7.59]
[1758657502728,65.1501,214.79,214.64,7.59]
[1758657502924,88.7,214.8,214.64,7.59]
[1758657503125,4.189,214.75,214.66,4.1905]
[1758657503329,4.189,214.75,214.64,7.59]
[1758657504536,4.189,214.75,214.67,4.1903]
[1758657504738,4.189,214.75,214.67,11.5503]
[1758657505343,4.1886,214.77,214.69,4.1901]
[1758657505644,36.81186926,214.82,214.68,7.36]
[1758657505841,118.92,214.84,214.68,7.36]
[1758657506235,4.1882,214.79,214.72,4.1895]
[1758657506437,65.1414,214.82,214.68,7.36]
[1758657508046,65.1473,214.8,214.68,7.36]
[1758657508442,65.1504,214.79,214.64,7.36]
[1758657508649,65.1534,214.78,214.64,7.36]
[1758657509253,2.63249748,214.79,214.68,7.36]
[1758657509848,4.1887,214.77,214.7,4.1898]
[1758657510350,4.1878,214.81,214.7,7.36]
[1758657510649,38.05190764,214.85,214.71,7.36]
[1758657510852,2.63249748,214.87,214.73,2.63249748]
[1758657511049,38.06910223,214.87,214.74,72.5243]
[1758657511347,186.66699748,214.91,214.75,7.36]
[1758657511546,4.1869,214.86,214.75,7.36]
[1758657512344,4.1872,214.85,214.77,4.1885]
[1758657513246,65.1291,214.86,214.75,7.36]
[1758657513552,65.1319,214.85,214.75,7.36]
[1758657514551,65.1366,214.84,214.71,7.36]
[1758657515255,65.141,214.82,214.71,7.36]
[1758657516150,4.1885,214.78,214.71,7.36]
[1758657517049,4.1888,214.76,214.71,7.36]
[1758657517347,65.1482,214.8,214.69,118.92]
[1758657518050,4.1889,214.76,214.69,123.11]
[1758657519251,4.1883,214.79,214.71,4.1897]
[1758657519751,176.0491,214.86,214.7,7.36]
[1758657519943,176.0491,214.86,214.74,4.189]
[1758657520548,184.0091,214.86,214.74,4.189]
[1758657520743,4.1879,214.81,214.74,4.189]
[1758657522353,4.1879,214.81,214.75,4.1888]
[1758657523256,4.1879,214.81,214.73,11.5493]
[1758657525258,4.1879,214.81,214.75,4.1889]
[1758657525459,4.1874,214.83,214.75,4.1889]
[1758657526157,4.1874,214.83,214.73,7.36]
[1758657526354,4.1871,214.85,214.73,7.36]
[1758657526753,4.1877,214.82,214.73,7.36]
[1758657526954,65.1319,214.85,214.73,7.36]
[1758657527855,4.1881,214.8,214.74,4.1891]
[1758657529060,4.1881,214.8,214.73,7.36]
[1758657529959,4.1876,214.83,214.73,7.36]
[1758657530761,4.1867,214.87,214.8,4.1879]
[1758657530958,13.68231316,214.9,214.79,7.36]
[1758657531162,65.1166,214.9,214.72,7.36]
[1758657531364,79.23841497,214.9,214.72,7.36]
[1758657531565,65.1227,214.88,214.76,4.1886]
[1758657531865,65.1291,214.86,214.72,7.36]
[1758657532063,65.1227,214.88,214.76,4.1887]
[1758657533159,65.1227,214.88,214.75,7.36]
[1758657533160,4.1874,214.83,214.77,4.1884]
[1758657535160,16.75187289,214.9,214.75,7.36]
[1758657535359,14.12181497,214.9,214.78,7.78]
[1758657535560,118.82,214.92,214.78,7.78]
[1758657535863,4.1867,214.87,214.79,4.188]
[1758657536771,4.1867,214.87,214.8,4.1878]
[1758657537565,4.1863,214.89,214.8,4.1878]
[1758657538273,4.1866,214.88,214.8,4.1878]
[1758657538472,65.1139,214.91,214.78,11.9683]
[1758657539169,169.30085544,214.92,214.79,4.188]
[1758657539570,169.30085544,214.92,214.78,7.78]
[1758657539775,50.48085544,214.92,214.78,7.78]
[1758657540072,121.43005792,214.94,214.78,7.78]
[1758657540568,4.1863,214.89,214.8,1.68261437]
[1758657540775,4.1863,214.89,214.81,7.78]
[1758657540968,4.1859,214.91,214.84,7.78]
[1758657541269,4.1859,214.91,214.79,7.78]
[1758657541569,1.68261437,214.91,214.74,5.15546257]
[1758657541762,65.1323,214.85,214.76,7.78]
[1758657541968,65.1351,214.84,214.73,1.68261437]
[1758657542364,65.1168,214.9,214.73,1.68261437]
[1758657542568,1.68261437,214.87,214.76,1.68261437]
[1758657542768,4.1878,214.82,214.76,1.68261437]
[1758657542961,1.68261437,214.84,214.74,11.969]
[1758657543167,65.1168,214.9,214.74,11.969]
[1758657543168,65.1136,214.91,214.76,1.68261437]
[1758657543371,1.68261437,214.87,214.76,1.68261437]
[1758657543569,65.1333,214.85,214.74,7.78]
[1758657543873,65.1333,214.85,214.69,5.15546257]
[1758657543874,1.68261437,214.81,214.71,1.68261437]
[1758657544774,45.18261437,214.84,214.74,1.68261437]
[1758657545071,4.1879,214.81,214.74,1.68261437]
[1758657545269,4.1879,214.81,214.72,7.78]
[1758657545474,4.1875,214.83,214.74,1.68261437]
[1758657545670,65.1351,214.84,214.72,7.78]
[1758657545877,1.68261437,214.84,214.74,1.68261437]
[1758657546068,1.68261437,214.84,214.72,7.78]
[1758657546069,4.1877,214.82,214.73,4.1892]
[1758657546270,1.68261437,214.84,214.73,1.68261437]
[1758657546474,15.8763422,214.92,214.81,7.78]
[1758657546673,4.1864,214.88,214.81,9.46261437]
[1758657546877,15.8763422,214.92,214.81,9.46261437]
[1758657547077,118.76,214.88,214.81,9.46261437]
[1758657547278,65.1139,214.91,214.79,1.68261437]
[1758657547473,14.19372783,214.92,214.82,1.68261437]
[1758657547779,4.187,214.86,214.78,1.68261437]
[1758657547970,122.947,214.86,214.78,1.68261437]
[1758657548171,4.187,214.86,214.78,1.68261437]
[1758657548473,122.947,214.86,214.78,1.68261437]
[1758657548675,122.947,214.86,214.78,5.87081437]
[1758657549172,122.947,214.86,214.76,7.78]
[1758657549173,118.76,214.86,214.76,7.78]
[1758657549373,65.127,214.87,214.75,1.68261437]
[1758657549578,118.76,214.86,214.75,1.68261437]
[1758657549773,66.80961437,214.87,214.75,1.68261437]
[1758657549976,4.1886,214.77,214.71,3.91162507]
[1758657550280,65.1293,214.86,214.74,1.68261437]
[1758657550476,65.1204,214.89,214.77,1.68261437]
[1758657550677,36.68135697,214.89,214.76,7.78]
[1758657550867,191.50463496,214.92,214.78,65.1525]
[1758657551067,1.16397334,214.91,214.8,7.78]
[1758657551273,1.16397334,214.9,214.8,7.78]
[1758657551576,120.16397334,214.89,214.8,7.78]
[1758657551777,1.16397334,214.88,214.76,7.09]
[1758657551972,1.16397334,214.87,214.76,7.09]
[1758657552168,65.1265,214.87,214.76,7.09]
[1758657552581,1.16401626,214.86,214.76,7.09]
[1758657552772,65.1265,214.87,214.76,7.09]
[1758657552971,1.16401626,214.86,214.76,7.09]
[1758657553169,4.1877,214.82,214.76,11.2787]
[1758657553374,4.1877,214.82,214.76,7.09]
[1758657553774,4.1872,214.84,214.76,7.09]
[1758657553977,119.08,214.83,214.76,7.09]
[1758657554179,99.16,214.85,214.76,7.09]
[1758657554883,4.1871,214.85,214.76,7.09]
[1758657555077,119.0,214.84,214.76,7.09]
[1758657555277,65.1144,214.91,214.76,11.00162507]
[1758657555477,4.1866,214.88,214.77,3.91162507]
[1758657555690,1.16394199,214.87,214.77,3.91162507]
[1758657555983,4.1874,214.83,214.76,15.19022507]
[1758657556184,119.02,214.85,214.76,11.00162507]
[1758657556679,119.02,214.85,214.76,15.19032507]
[1758657557184,119.02,214.85,214.75,3.91162507]
[1758657557384,120.12414171,214.84,214.74,4.1891]
[1758657557680,118.96,214.84,214.73,3.91162507]
[1758657557875,119.0,214.83,214.72,8.10112507]
[1758657558078,65.1144,214.91,214.76,65.1578]
[1758657558079,1.16423078,214.82,214.76,65.1578]
[1758657558278,59.76,214.9,214.79,3.91162507]
[1758657558482,59.76,214.9,214.8,3.91162507]
[1758657558783,13.94239046,214.92,214.8,3.91162507]
[1758657558982,119.78,214.91,214.8,3.91162507]
[1758657559383,119.78,214.91,214.81,3.91162507]
[1758657559580,119.78,214.9,214.81,3.91162507]
[1758657559780,119.78,214.9,214.8,3.91162507]
[1758657560085,4.1868,214.87,214.8,4.1878]
[1758657560275,65.1057,214.94,214.79,3.91162507]
[1758657560476,119.68,214.93,214.8,11.00162507]
[1758657560680,4.186,214.91,214.82,4.1874]
[1758657561078,14.37286409,214.97,214.82,3.91162507]
[1758657561286,14.37286409,214.97,214.88,7.09]
[1758657561486,36.86574337,215.03,214.91,11.13509289]
[1758657561781,70.15863228,215.13,214.95,7.09]
[1758657561984,65.0564,215.1,214.96,3.91162507]
[1758657562188,120.04,215.09,214.95,7.09]
[1758657562383,4.1831,215.05,214.95,7.09]
[1758657562577,65.0663,215.07,214.95,7.09]
[1758657562782,120.04,215.06,214.9,8.09762507]
[1758657562990,120.02,215.05,214.93,72.1967]
[1758657563290,120.08,215.04,214.96,4.1848]
[1758657563488,4.1825,215.08,214.96,4.1848]
[1758657563680,120.08,215.07,214.96,4.1848]
[1758657564089,4.1829,215.06,214.93,7.09]
[1758657564290,120.04,215.05,214.94,7.66]
[1758657564584,120.02,215.05,214.94,7.66]
[1758657564790,120.02,215.04,214.9,11.57162507]
[1758657564992,65.0727,215.05,214.9,11.57162507]
[1758657565286,79.11007883,215.09,214.93,7.66]
[1758657565481,120.08,215.08,214.93,7.66]
[1758657565689,4.1833,215.04,214.93,7.66]
[1758657566079,65.0657,215.07,214.93,7.66]
[1758657566290,4.1837,215.02,214.93,7.66]
[1758657567185,4.1842,215.0,214.93,7.66]
[1758657567389,14.04997883,215.09,214.93,7.66]
[1758657567592,119.98,215.08,214.93,7.66]
[1758657567793,65.0651,215.07,214.93,7.66]
[1758657568386,4.1834,215.04,214.94,4.1852]
[1758657568792,119.98,215.03,214.94,4.1852]
[1758657569190,4.1834,215.04,214.94,4.1852]
[1758657569489,119.9,215.03,214.94,4.1852]
[1758657569687,119.88,215.03,214.94,4.1852]
[1758657569891,119.86,215.02,214.94,4.1852]
[1758657570293,4.1829,215.07,214.94,4.1852]
[1758657570486,4.1829,215.07,214.96,4.1848]
[1758657570690,119.82,215.06,214.95,7.66]
[1758657570890,195.0992,215.18,214.95,7.66]
[1758657570891,65.0243,215.21,215.02,7.66]
[1758657571097,37.41622675,215.2,215.04,72.7338]
[1758657571295,37.41622675,215.2,215.06,7.66]
[1758657571296,4.1808,215.17,215.06,7.66]
[1758657571591,120.32,215.16,215.06,7.66]
[1758657571795,120.32,215.16,215.01,11.70509289]
[1758657571995,65.0419,215.15,215.01,11.70509289]
[1758657572289,65.0477,215.13,215.01,7.66]
[1758657572489,120.58,215.12,215.01,7.66]
[1758657572693,120.58,215.11,215.01,7.66]
[1758657573097,65.0535,215.11,214.97,8.22959289]
[1758657573296,120.54,215.1,214.97,4.04509289]
[1758657573494,4.1827,215.07,214.97,4.04509289]
[1758657573698,120.54,215.09,214.96,7.66]
[1758657574400,65.0743,215.04,214.9,7.66]
[1758657574696,65.0933,214.98,214.84,7.66]
[1758657574897,65.1051,214.94,214.77,69.19809289]
[1758657575099,65.1197,214.89,214.73,3.91162507]
[1758657575300,65.1289,214.86,214.73,7.66]
[1758657575492,120.82,214.85,214.73,7.66]
[1758657575696,65.1113,214.92,214.73,7.66]
[1758657575904,65.1227,214.88,214.73,7.66]
[1758657576295,4.1869,214.86,214.74,4.1891]
[1758657576503,120.94,214.85,214.74,4.1891]
[1758657576700,120.94,214.85,214.73,7.66]
[1758657576701,13.77204365,214.85,214.73,7.66]
[1758657576898,120.9,214.84,214.73,7.66]
[1758657577098,65.1202,214.89,214.73,7.66]
[1758657577299,120.88,214.88,214.75,65.1616]
[1758657577501,120.88,214.88,214.73,7.66]
[1758657577701,4.1871,214.85,214.73,11.8492]
[1758657578103,107.22,214.84,214.73,11.8492]
[1758657578304,18.34356098,214.85,214.73,11.8492]
[1758657578505,120.94,214.84,214.73,11.8492]
[1758657578807,120.92,214.83,214.73,11.8492]
[1758657579916,18.34356098,214.85,214.7,4.1898]
[1758657580113,69.16,214.84,214.69,65.1794]
[1758657580413,65.1357,214.84,214.68,7.66]
[1758657580612,65.1411,214.82,214.68,7.66]
[1758657581008,4.1879,214.81,214.68,11.8502]
[1758657581509,103.16,214.8,214.68,11.8502]
[1758657581816,4.1882,214.79,214.68,7.66]
[1758657582713,103.16,214.8,214.68,7.66]
[1758657583013,65.1469,214.8,214.64,4.191]
[1758657583211,65.1566,214.77,214.62,7.66]
[1758657583410,65.1658,214.74,214.56,76.79022507]
[1758657583610,65.1713,214.72,214.57,4.1923]
[1758657583806,186.0083,214.73,214.57,4.1923]
[1758657584009,37.58179582,214.78,214.63,4.1912]
[1758657584317,416.9646,214.81,214.58,7.66]
[1758657584318,69.20449289,214.76,214.58,7.66]
[1758657584712,4.1893,214.74,214.6,4.1918]
[1758657584908,120.92,214.73,214.6,4.1918]
[1758657585216,4.1893,214.74,214.6,4.1918]
[1758657585516,120.9,214.73,214.6,4.1918]
[1758657585814,4.1896,214.72,214.6,4.1918]
[1758657586009,120.86,214.71,214.6,4.1918]
[1758657586210,120.86,214.7,214.6,4.1918]
[1758657586405,65.1594,214.76,214.6,4.1918]
[1758657586617,125.009,214.75,214.62,4.1914]
[1758657586817,4.189,214.75,214.62,4.1914]
[1758657587014,120.8,214.74,214.62,4.1914]
[1758657587311,125.0094,214.73,214.59,4.192]
[1758657587516,4.1894,214.73,214.59,4.192]
[1758657588215,120.74,214.72,214.59,4.192]
[1758657588615,4.1894,214.73,214.59,4.192]
[1758657588919,4.1894,214.73,214.62,4.1915]
[1758657589216,120.68,214.72,214.58,7.66]
[1758657589606,120.68,214.72,214.61,4.1916]
[1758657589917,4.1894,214.73,214.61,4.1916]
[1758657589918,120.62,214.71,214.61,4.1916]
[1758657590113,4.1894,214.73,214.61,4.1916]
[1758657590415,4.1889,214.76,214.63,4.1912]
[1758657590713,4.04509289,214.78,214.64,65.1953]
[1758657590911,110.06,214.75,214.6,4.1917]
[1758657591116,65.157,214.77,214.6,4.1917]
[1758657591117,69.21039289,214.74,214.6,4.1917]
[1758657591312,65.1682,214.73,214.6,4.1917]
[1758657591520,65.1783,214.7,214.57,11.8523]
[1758657591717,4.04509289,214.7,214.53,65.2278]
[1758657592024,65.1839,214.68,214.55,7.66]
[1758657592212,121.04,214.67,214.55,7.66]
[1758657592718,69.22289289,214.7,214.53,65.2283]
[1758657593016,186.2005,214.69,214.53,65.2283]
[1758657593208,65.1625,214.75,214.58,72.593]
[1758657593409,4.04509289,214.73,214.58,7.38]
[1758657593615,37.12575754,214.75,214.6,65.2071]
[1758657593811,65.1712,214.72,214.57,7.38]
[1758657594323,4.1905,214.67,214.52,72.6106]
[1758657594621,37.38,214.66,214.54,65.2253]
[1758657594824,4.1905,214.67,214.54,65.2253]
[1758657595018,85.1,214.66,214.57,4.1924]
[1758657595215,4.1905,214.67,214.57,4.1924]
[1758657595416,4.1899,214.7,214.57,72.5961]
[1758657595623,121.62,214.69,214.57,72.5961]
[1758657595822,4.1894,214.73,214.62,4.1914]
[1758657596016,4.04509289,214.74,214.62,4.1914]
[1758657596226,65.16,214.76,214.62,4.1914]
[1758657596419,4.1896,214.72,214.62,4.1914]
[1758657596916,121.64,214.71,214.62,4.1914]
[1758657597419,121.6,214.7,214.64,4.1911]
[1758657597721,4.1894,214.73,214.64,4.1911]
[1758657597923,4.1897,214.71,214.58,65.2133]
[1758657598317,101.02,214.7,214.63,4.1913]
[1758657598717,4.1892,214.74,214.63,4.1913]
[1758657598918,121.5,214.73,214.63,4.1913]
[1758657599122,65.1615,214.76,214.6,11.5717]
[1758657599319,121.48,214.75,214.6,11.5717]
[1758657599522,121.46,214.74,214.6,11.5717]
[1758657599718,65.1713,214.72,214.57,4.1923]
[1758657599921,65.1713,214.72,214.55,7.38]
[1758657599922,65.1835,214.68,214.55,7.38]
[1758657600116,121.48,214.67,214.55,7.38]
[1758657600319,121.56,214.66,214.55,7.38]
[1758657600824,4.1911,214.64,214.55,7.38]
[1758657601524,4.1915,214.62,214.55,7.38]
[1758657602121,65.2015,214.62,214.5,7.38]
[1758657602522,121.5,214.61,214.5,7.38]
[1758657602820,121.5,214.6,214.5,7.38]
[1758657603220,4.1921,214.59,214.5,7.38]
[1758657603421,65.2083,214.6,214.47,4.1943]
[1758657603724,4.1926,214.57,214.45,7.38]
[1758657603925,121.54,214.56,214.45,7.38]
[1758657604827,65.2109,214.59,214.45,7.38]
[1758657605122,121.48,214.58,214.45,7.38]
[1758657605327,65.2109,214.59,214.45,7.38]
[1758657605529,65.2023,214.62,214.45,7.38]
[1758657605530,121.46,214.58,214.45,7.38]
[1758657605825,121.44,214.57,214.45,7.38]
[1758657606829,125.6325,214.57,214.48,4.1942]
[1758657607230,121.44,214.57,214.45,7.38]
[1758657607425,4.1932,214.53,214.45,7.38]
[1758657607731,121.34,214.52,214.42,4.1953]
[1758657608129,65.2229,214.55,214.42,4.1953]
[1758657608325,65.2298,214.53,214.4,11.5758]
[1758657608527,121.28,214.52,214.4,7.38]
[1758657608823,121.28,214.51,214.44,4.195]
[1758657609431,121.3,214.5,214.4,7.38]
[1758657609622,4.1935,214.52,214.43,4.1952]
[1758657609930,65.2169,214.57,214.43,4.1952]
[1758657610130,103.38,214.56,214.4,7.38]
[1758657610329,65.2169,214.57,214.4,7.38]
[1758657610530,99.24,214.56,214.4,7.38]
[1758657611033,4.1934,214.53,214.44,4.1948]
[1758657611228,99.24,214.56,214.4,7.38]
[1758657611229,65.2229,214.55,214.4,7.38]
[1758657611430,4.1939,214.5,214.41,4.1954]
[1758657612028,51.38,214.49,214.41,4.1954]
[1758657612430,96.16,214.49,214.42,4.1952]
[1758657613328,121.02,214.49,214.42,4.1952]
[1758657613528,4.1936,214.51,214.42,4.1952]
[1758657613730,65.2169,214.57,214.44,4.195]
[1758657613932,4.1932,214.54,214.44,4.195]
[1758657614126,4.1932,214.54,214.41,65.2647]
[1758657614329,4.1932,214.54,214.4,7.38]
[1758657614536,65.2113,214.59,214.46,4.1944]
[1758657614839,120.96,214.58,214.46,4.1944]